fUST/lending_fUST_20250523
["ID","MTS","AMOUNT","RATE_DAILY","PERIOD"]
[362067259,1747967445195,-277.371739,0.00020187,2]
[362067260,1747967445204,-3078.90106238,0.0002021,2]
[362067261,1747967445213,-430.0,0.00020335,2]
[362067262,1747967445222,-636.92,0.00020335,2]
[362067263,1747967445232,-733.33,0.00020335,2]
[362067264,1747967445241,-604.89,0.00020335,2]
[362067265,1747967445251,-430.0,0.00020335,2]
[362067266,1747967445261,-1165.37,0.00020335,2]
[362067267,1747967445270,-919.83,0.00020335,2]
[362067268,1747967445279,-430.0,0.00020335,2]
[362067269,1747967445289,-430.0,0.00020335,2]
[362067270,1747967445298,-500.0,0.00020389,2]
[362067271,1747967445307,-215.0738,0.00020389,2]
[362067272,1747967445317,-151.0,0.00020389,2]
[362067273,1747967445326,-208.36431425,0.00020412,2]
[362067274,1747967445336,-151.0,0.00020413,2]
[362067275,1747967445345,-151.0,0.00020413,2]
[362067276,1747967445355,-1492.824704,0.00020413,2]
[362067277,1747967445364,-1492.824704,0.00020413,2]
[362067278,1747967445373,-650.57,0.00020413,2]
[362067279,1747967445387,-430.0,0.00020413,2]
[362067280,1747967445397,-789.92,0.00020413,2]
[362067281,1747967445407,-844.56,0.00020413,2]
[362067282,1747967445416,-430.0,0.00020413,2]
[362067283,1747967445426,-430.0,0.00020413,2]
[362067285,1747967445435,-3078.90106238,0.00020486,3]
[362067286,1747967445445,-150.15,0.000205,2]
[362067287,1747967445454,-823.0,0.0002052,2]
[362067288,1747967445463,-162.0,0.0002052,2]
[362067289,1747967445473,-223.102027,0.00020555,2]
[362067290,1747967445482,-223.102027,0.00020555,2]
[362067291,1747967445492,-151.0,0.00020555,2]
[362067292,1747967445502,-430.0,0.00020609,2]
[362067293,1747967445512,-636.92,0.00020609,2]
[362067294,1747967445521,-733.33,0.00020609,2]
[362067295,1747967445533,-604.89,0.00020609,2]
[362067296,1747967445543,-430.0,0.00020609,2]
[362067297,1747967445553,-1165.37,0.00020609,2]
[362067298,1747967445563,-919.83,0.00020609,2]
[362067299,1747967445573,-430.0,0.00020609,2]
[362067300,1747967445582,-430.0,0.00020609,2]
[362067301,1747967445591,-151.0,0.00020677,2]
[362067302,1747967445601,-152.344886,0.00020677,2]
[362067303,1747967445610,-630.761742,0.00020677,2]
[362067304,1747967445619,-630.761742,0.00020677,2]
[362067305,1747967445629,-241.682435,0.00020677,2]
[362067306,1747967445638,-241.682435,0.00020677,2]
[362067308,1747967445647,-243.020469,0.00020687,2]
[362067310,1747967445657,-243.020469,0.00020687,2]
[362067312,1747967445666,-650.57,0.00020687,2]
[362067314,1747967445676,-430.0,0.00020687,2]
[362067316,1747967445685,-789.92,0.00020687,2]
[362067318,1747967445696,-844.56,0.00020687,2]
[362067320,1747967445705,-430.0,0.00020687,2]
[362067322,1747967445715,-430.0,0.00020687,2]
[362067324,1747967445725,-637.0,0.000207,2]
[362067326,1747967445734,-1230.500678,0.00020732,2]
[362067328,1747967445743,-3078.90106238,0.00020762,3]
[362067330,1747967445752,-187.520611,0.00020796,2]
[362067332,1747967445762,-151.0,0.00020796,2]
[362067334,1747967445771,-151.0,0.00020796,2]
[362067336,1747967445781,-289.50763698,0.00020815,2]
[362067338,1747967445790,-960.0,0.00020838,2]
[362067340,1747967445800,-430.0,0.00020883,2]
[362067342,1747967445810,-636.92,0.00020883,2]
[362067344,1747967445819,-733.33,0.00020883,2]
[362067346,1747967445828,-604.89,0.00020883,2]
[362067348,1747967445837,-430.0,0.00020883,2]
[362067350,1747967445847,-1165.37,0.00020883,2]
[362067352,1747967445856,-919.83,0.00020883,2]
[362067354,1747967445866,-430.0,0.00020883,2]
[362067356,1747967445876,-430.0,0.00020883,2]
[362067358,1747967445886,-650.57,0.00020961,2]
[362067360,1747967445895,-430.0,0.00020961,2]
[362067362,1747967445907,-789.92,0.00020961,2]
[362067364,1747967445917,-844.56,0.00020961,2]
[362067366,1747967445926,-430.0,0.00020961,2]
[362067368,1747967445935,-430.0,0.00020961,2]
[362067370,1747967445947,-223.102027,0.00021,2]
[362067372,1747967445957,-223.102027,0.00021,2]
[362067373,1747967445966,-589.0,0.00021,2]
[362067375,1747967445976,-151.0,0.00021,2]
[362067377,1747967445986,-4461.12821252,0.00021,3]
[362067379,1747967445996,-3078.90106238,0.00021038,4]
[362067381,1747967446005,-4397.04687124,0.00021156,2]
[362067382,1747967446014,-151.829639,0.00021156,2]
[362067384,1747967446024,-151.0,0.00021156,2]
[362067386,1747967446034,-228.294513,0.00021156,2]
[362067388,1747967446043,-228.294513,0.00021156,2]
[362067390,1747967446052,-164.54543125,0.00021156,2]
[362067392,1747967446061,-4303.135755,0.00021156,2]
[362067394,1747967446071,-4303.135755,0.00021156,2]
[362067396,1747967446081,-277.758382,0.00021156,2]
[362067398,1747967446090,-277.758382,0.00021156,2]
[362067400,1747967446101,-636.92,0.00021156,2]
[362067402,1747967446111,-151.0,0.00021156,2]
[362067403,1747967446120,-151.0,0.00021156,2]
[362067404,1747967446129,-290.352962,0.00021156,2]
[362067405,1747967446140,-733.33,0.00021156,2]
[362067406,1747967446149,-604.89,0.00021156,2]
[362067407,1747967446159,-430.0,0.00021156,2]
[362067408,1747967446169,-1165.37,0.00021156,2]
[362067409,1747967446178,-919.83,0.00021156,2]
[362067410,1747967446188,-430.0,0.00021156,2]
[362067411,1747967446199,-430.0,0.00021156,2]
[362067412,1747967446208,-155.0,0.00021156,2]
[362067414,1747967446218,-900.0,0.00021164,2]
[362067415,1747967446227,-491.4708102,0.00021178,2]
[362067416,1747967446236,-363.6506951,0.00021178,2]
[362067417,1747967446245,-363.6506951,0.00021178,2]
[362067418,1747967446254,-363.6506951,0.00021178,2]
[362067419,1747967446264,-363.6506951,0.00021178,2]
[362067420,1747967446273,-151.0,0.00021235,2]
[362067421,1747967446283,-151.0,0.00021235,2]
[362067422,1747967446292,-243.020469,0.00021235,2]
[362067423,1747967446302,-243.020469,0.00021235,2]
[362067424,1747967446311,-650.57,0.00021235,2]
[362067425,1747967446321,-430.0,0.00021235,2]
[362067426,1747967446331,-789.92,0.00021235,2]
[362067427,1747967446340,-844.56,0.00021235,2]
[362067428,1747967446351,-430.0,0.00021235,2]
[362067429,1747967446360,-430.0,0.00021235,2]
[362067430,1747967446370,-500.0,0.00021271,2]
[362067431,1747967446380,-500.0,0.00021271,2]
[362067432,1747967446390,-500.0,0.00021271,2]
[362067433,1747967446399,-500.0,0.00021271,2]
[362067434,1747967446408,-500.0,0.00021271,2]
[362067435,1747967446418,-3000.0,0.000213,2]
[362067436,1747967446428,-3000.0,0.0002131,2]
[362067437,1747967446437,-156.981408,0.0002131,2]
[362067438,1747967446448,-3078.90106238,0.00021314,5]
[362067439,1747967446457,-3000.0,0.0002132,2]
[362067440,1747967446467,-160.0,0.00021329,3]
[362067441,1747967446477,-3000.0,0.0002133,2]
[362067442,1747967446486,-151.0,0.0002133,2]
[362067443,1747967446496,-151.0,0.0002133,2]
[362067444,1747967446508,-3000.0,0.0002134,2]
[362067445,1747967446517,-151.0,0.0002134,2]
[362067446,1747967446527,-175.281537,0.0002134,2]
[362067447,1747967446536,-175.281537,0.0002134,2]
[362067448,1747967446545,-151.0,0.0002134,2]
[362067449,1747967446554,-151.0,0.0002134,2]
[362067450,1747967446563,-151.0,0.0002134,2]
[362067451,1747967446573,-151.0,0.0002134,2]
[362067452,1747967446583,-3000.0,0.0002135,2]
[362067453,1747967446592,-289.916341,0.0002135,2]
[362067454,1747967446601,-500.0,0.0002135,2]
[362067455,1747967446610,-3000.0,0.0002136,2]
[362067456,1747967446619,-3000.0,0.0002137,2]
[362067457,1747967446628,-628.37199564,0.00021377,2]
[362067458,1747967446638,-3000.0,0.0002138,2]
[362067459,1747967446647,-206.136246,0.0002138,2]
[362067460,1747967446656,-151.0,0.0002138,2]
[362067461,1747967446666,-3000.0,0.0002139,2]
[362067462,1747967446676,-570.0198762,0.00021397,2]
[362067463,1747967446685,-153.0,0.00021397,2]
[362067464,1747967446698,-176.0716068,0.00021397,2]
[362067465,1747967446707,-158.1770606,0.00021397,2]
[362067466,1747967446716,-158.1770606,0.00021397,2]
[362067467,1747967446725,-26.49354871,0.00021397,2]
[362067468,1747967446831,-149.57805809,0.00021397,2]
[362067469,1747967446841,-570.0198762,0.00021397,2]
[362067470,1747967446851,-153.0,0.00021397,2]
[362067471,1747967446860,-153.0,0.00021397,2]
[362067472,1747967446869,-158.1770606,0.00021397,2]
[362067473,1747967446880,-176.0716068,0.00021397,2]
[362067474,1747967446890,-570.0198762,0.00021397,2]
[362067475,1747967446899,-176.0716068,0.00021397,2]
[362067476,1747967446909,-570.0198762,0.00021397,2]
[362067477,1747967446922,-158.1770606,0.00021397,2]
[362067478,1747967446931,-350.535,0.00021397,2]
[362067479,1747967446943,-158.1770606,0.00021397,2]
[362067480,1747967446952,-570.0198762,0.00021397,2]
[362067481,1747967446962,-158.1770606,0.00021397,2]
[362067482,1747967446971,-570.0198762,0.00021397,2]
[362067483,1747967447097,-570.0198762,0.00021397,2]
[362067484,1747967447106,-158.1770606,0.00021397,2]
[362067485,1747967447117,-3000.0,0.000214,2]
[362067486,1747967447126,-500.0,0.00021408,2]
[362067487,1747967447136,-1176.05288817,0.0002141,2]
[362067488,1747967447148,-755.8897517,0.0002141,2]
[362067489,1747967447160,-1068.05736013,0.0002141,2]
[362067490,1747967447169,-611.16181658,0.0002142,2]
[362067491,1747967447182,-2388.83818342,0.0002142,2]
[362067492,1747967447193,-151.0,0.0002142,2]
[362067493,1747967447202,-223.102027,0.0002142,2]
[362067494,1747967447212,-223.102024,0.0002142,2]
[362067495,1747967447221,-151.0,0.0002142,2]
[362067496,1747967447231,-2105.39995363,0.0002143,2]
[362067497,1747967447242,-471.54538709,0.0002143,2]
[362067498,1747967447457,-24.78914695,0.00017399,2]
[362067499,1747967447500,-430.0,0.00016499,2]
[362067500,1747967447510,-380.09,0.00016773,2]
[362067504,1747968287213,291.762827,0.00013699,2]
[362067596,1747968632161,-5000.0,0.00015257,2]
[362067598,1747968632172,-300.0,0.00015494,2]
[362067600,1747968632181,-300.0,0.00015494,2]
[362067602,1747968632189,-197.0,0.00015494,2]
[362067604,1747968632198,-1088.0,0.00015494,2]
[362067606,1747968632206,-9154.82908622,0.00015495,2]
[362067619,1747968632320,-15745.17091378,0.00015495,2]
[362067622,1747968632334,-392.567275,0.00015566,2]
[362067624,1747968632343,-575.54444153,0.0001634,2]
[362067626,1747968632352,-190.18090012,0.0001649,3]
[362067628,1747968632363,-162.0,0.00016495,2]
[362067630,1747968632372,-170.45610945,0.00016496,2]
[362067632,1747968632383,-430.0,0.00016496,2]
[362067635,1747968632392,-430.0,0.00016496,2]
[362067638,1747968632401,-430.0,0.00016496,2]
[362067641,1747968632412,-430.0,0.00016496,2]
[362067644,1747968632422,-480.11,0.00016496,2]
[362067647,1747968632431,-430.0,0.00016496,2]
[362067650,1747968632441,-427.53126281,0.00016496,2]
[362067653,1747968632450,-430.0,0.00016496,2]
[362067656,1747968632460,-610.31,0.00016496,2]
[362067659,1747968632469,-430.0,0.00016496,2]
[362067661,1747968632479,-529.17,0.00016496,2]
[362067663,1747968632489,-459.65413001,0.00016496,2]
[362067665,1747968632498,-430.0,0.00016496,2]
[362067668,1747968632509,-651.54,0.00016496,2]
[362067671,1747968632519,-430.0,0.00016496,2]
[362067674,1747968632529,-430.0,0.00016497,2]
[362067677,1747968632538,-430.0,0.00016497,2]
[362067680,1747968632548,-320.78571163,0.00016497,2]
[362067683,1747968632557,-430.0,0.00016497,2]
[362067686,1747968632567,-430.0,0.00016497,2]
[362067689,1747968632576,-430.0,0.00016497,2]
[362067692,1747968632585,-432.70287917,0.00016497,2]
[362067696,1747968632595,-430.0,0.00016497,2]
[362067698,1747968632604,-158.19534914,0.00016497,2]
[362067700,1747968632614,-430.0,0.00016497,2]
[362067702,1747968632623,-430.0,0.00016497,2]
[362067704,1747968632632,-430.0,0.00016497,2]
[362067706,1747968632642,-210.61,0.00016497,2]
[362067708,1747968632651,-430.0,0.00016497,2]
[362067710,1747968632661,-430.0,0.00016497,2]
[362067712,1747968632671,-502.28429296,0.00016497,2]
[362067714,1747968632680,-430.0,0.00016497,2]
[362067716,1747968632690,-436.62790653,0.00016497,2]
[362067718,1747968632700,-430.0,0.00016497,2]
[362067720,1747968632709,-430.0,0.00016497,2]
[362067722,1747968632719,-430.0,0.00016497,2]
[362067724,1747968632729,-430.0,0.00016497,2]
[362067726,1747968632739,-430.0,0.00016497,2]
[362067728,1747968632749,-430.0,0.00016497,2]
[362067730,1747968632759,-878.44,0.00016497,2]
[362067732,1747968632769,-430.0,0.00016497,2]
[362067734,1747968632778,-488.07188642,0.00016497,2]
[362067736,1747968632789,-455.82626205,0.00016497,2]
[362067738,1747968632798,-221.66054506,0.00016497,2]
[362067740,1747968632807,-369.44764903,0.00016497,2]
[362067742,1747968632818,-430.0,0.00016497,2]
[362067744,1747968632827,-430.0,0.00016497,2]
[362067746,1747968632837,-430.0,0.00016497,2]
[362067748,1747968632847,-430.0,0.00016497,2]
[362067750,1747968632857,-430.0,0.00016497,2]
[362067753,1747968632867,-500.0,0.00016497,2]
[362067755,1747968632877,-185.64866921,0.00016497,2]
[362067757,1747968632886,-500.0,0.00016497,2]
[362067759,1747968632896,-500.0,0.00016497,2]
[362067761,1747968632905,-500.0,0.00016497,2]
[362067763,1747968632915,-367.13050935,0.00016497,2]
[362067765,1747968632925,-500.0,0.00016497,2]
[362067767,1747968632935,-346.07875009,0.00016497,2]
[362067769,1747968632944,-500.0,0.00016497,2]
[362067771,1747968632953,-500.0,0.00016497,2]
[362067773,1747968632963,-500.0,0.00016497,2]
[362067775,1747968632973,-500.0,0.00016497,2]
[362067777,1747968632984,-500.0,0.00016497,2]
[362067779,1747968632994,-500.0,0.00016497,2]
[362067781,1747968633003,-500.0,0.00016497,2]
[362067783,1747968633013,-500.0,0.00016497,2]
[362067785,1747968633022,-500.0,0.00016497,2]
[362067787,1747968633032,-500.0,0.00016497,2]
[362067789,1747968633042,-500.0,0.00016497,2]
[362067791,1747968633052,-500.0,0.00016497,2]
[362067793,1747968633061,-500.0,0.00016497,2]
[362067795,1747968633071,-500.0,0.00016497,2]
[362067797,1747968633082,-500.0,0.00016497,2]
[362067800,1747968633092,-500.0,0.00016497,2]
[362067802,1747968633102,-500.0,0.00016497,2]
[362067804,1747968633111,-174.5290547,0.00016497,2]
[362067806,1747968633121,-342.28730481,0.00016497,2]
[362067808,1747968633130,-500.0,0.00016497,2]
[362067810,1747968633140,-430.0,0.00016498,2]
[362067812,1747968633150,-430.0,0.00016498,2]
[362067814,1747968633159,-444.42320171,0.00016498,2]
[362067816,1747968633168,-523.22564755,0.00016498,2]
[362067818,1747968633178,-430.0,0.00016498,2]
[362067820,1747968633188,-430.0,0.00016498,2]
[362067822,1747968633198,-430.0,0.00016498,2]
[362067824,1747968633208,-428.57086109,0.00016498,2]
[362067826,1747968633217,-430.0,0.00016498,2]
[362067828,1747968633228,-430.0,0.00016498,2]
[362067830,1747968633238,-444.86606361,0.00016498,2]
[362067832,1747968633248,-363.85019768,0.00016498,2]
[362067834,1747968633258,-430.0,0.00016498,2]
[362067836,1747968633268,-430.0,0.00016498,2]
[362067838,1747968633278,-430.0,0.00016498,2]
[362067840,1747968633288,-430.0,0.00016498,2]
[362067842,1747968633298,-438.44883724,0.00016498,2]
[362067844,1747968633307,-430.0,0.00016498,2]
[362067847,1747968633319,-430.0,0.00016498,2]
[362067849,1747968633329,-430.0,0.00016498,2]
[362067851,1747968633339,-442.01769276,0.00016498,2]
[362067853,1747968633349,-430.0,0.00016498,2]
[362067855,1747968633359,-430.0,0.00016498,2]
[362067857,1747968633369,-430.0,0.00016498,2]
[362067859,1747968633378,-430.0,0.00016498,2]
[362067861,1747968633388,-438.03704033,0.00016498,2]
[362067863,1747968633398,-430.0,0.00016498,2]
[362067865,1747968633408,-430.0,0.00016498,2]
[362067867,1747968633417,-430.0,0.00016498,2]
[362067869,1747968633427,-430.0,0.00016498,2]
[362067871,1747968633437,-437.83952273,0.00016498,2]
[362067873,1747968633447,-430.0,0.00016498,2]
[362067875,1747968633457,-430.0,0.00016498,2]
[362067877,1747968633468,-430.0,0.00016498,2]
[362067879,1747968633478,-700.58,0.00016498,2]
[362067881,1747968633487,-430.0,0.00016498,2]
[362067883,1747968633497,-430.0,0.00016498,2]
[362067885,1747968633506,-606.73,0.00016498,2]
[362067887,1747968633516,-430.0,0.00016498,2]
[362067889,1747968633526,-708.82,0.00016498,2]
[362067891,1747968633537,-430.0,0.00016498,2]
[362067893,1747968633546,-430.0,0.00016498,2]
[362067895,1747968633556,-430.0,0.00016498,2]
[362067897,1747968633566,-430.0,0.00016498,2]
[362067899,1747968633576,-430.0,0.00016498,2]
[362067901,1747968633586,-430.0,0.00016498,2]
[362067903,1747968633596,-430.0,0.00016498,2]
[362067905,1747968633607,-430.0,0.00016498,2]
[362067907,1747968633617,-430.0,0.00016498,2]
[362067909,1747968633626,-430.0,0.00016498,2]
[362067911,1747968633637,-430.0,0.00016498,2]
[362067913,1747968633646,-430.0,0.00016498,2]
[362067915,1747968633656,-430.0,0.00016498,2]
[362067917,1747968633667,-430.0,0.00016498,2]
[362067920,1747968633677,-449.55946227,0.00016498,2]
[362067922,1747968633687,-430.0,0.00016498,2]
[362067924,1747968633697,-430.0,0.00016498,2]
[362067925,1747968633707,-430.0,0.00016498,2]
[362067928,1747968633718,-450.0,0.00016498,2]
[362067929,1747968633728,-430.0,0.00016498,2]
[362067931,1747968633738,-456.97687468,0.00016499,2]
[362067933,1747968633749,-430.0,0.00016499,2]
[362067935,1747968633758,-430.0,0.00016499,2]
[362067937,1747968633768,-430.0,0.00016499,2]
[362067939,1747968633779,-430.0,0.00016499,2]
[362067941,1747968633789,-434.94814597,0.00016499,2]
[362067942,1747968633799,-430.0,0.00016499,2]
[362067943,1747968633808,-409.46394943,0.00016499,2]
[362067945,1747968633819,-462.90515454,0.00016499,2]
[362067947,1747968633830,-430.0,0.00016499,2]
[362067949,1747968633840,-430.0,0.00016499,2]
[362067950,1747968633850,-430.0,0.00016499,2]
[362067951,1747968633860,-430.0,0.00016499,2]
[362067953,1747968633871,-430.0,0.00016499,2]
[362067954,1747968633880,-430.0,0.00016499,2]
[362067956,1747968633890,-430.0,0.00016499,2]
[362067958,1747968633901,-437.78127499,0.00016499,2]
[362067960,1747968633911,-375.10555075,0.00016499,2]
[362067962,1747968633922,-430.0,0.00016499,2]
[362067964,1747968633932,-430.0,0.00016499,2]
[362067966,1747968633943,-430.0,0.00016499,2]
[362067968,1747968633952,-430.0,0.00016499,2]
[362067970,1747968633962,-430.0,0.00016499,2]
[362067972,1747968633972,-500.0,0.00016499,2]
[362067974,1747968633983,-430.0,0.00016499,2]
[362067976,1747968633993,-430.0,0.00016499,2]
[362067978,1747968634003,-430.0,0.00016499,2]
[362067980,1747968634013,-430.0,0.00016499,2]
[362067982,1747968634023,-430.0,0.00016499,2]
[362067984,1747968634033,-430.0,0.0001677,2]
[362067985,1747968634043,-480.11,0.0001677,2]
[362067987,1747968634053,-610.31,0.0001677,2]
[362067989,1747968634063,-430.0,0.0001677,2]
[362067991,1747968634073,-529.17,0.0001677,2]
[362067993,1747968634084,-430.0,0.0001677,2]
[362067995,1747968634094,-651.54,0.0001677,2]
[362067997,1747968634104,-430.0,0.00016771,2]
[362067998,1747968634114,-430.0,0.00016771,2]
[362067999,1747968634124,-430.0,0.00016771,2]
[362068000,1747968634134,-442.74298017,0.00016771,2]
[362068001,1747968634144,-443.63704224,0.00016771,2]
[362068002,1747968634154,-430.0,0.00016771,2]
[362068003,1747968634164,-430.0,0.00016771,2]
[362068004,1747968634173,-878.44,0.00016771,2]
[362068005,1747968634183,-470.15978422,0.00016771,2]
[362068006,1747968634192,-430.0,0.00016771,2]
[362068007,1747968634202,-457.67069498,0.00016771,2]
[362068008,1747968634212,-430.0,0.00016771,2]
[362068009,1747968634222,-430.0,0.00016771,2]
[362068010,1747968634234,-430.0,0.00016772,2]
[362068011,1747968634245,-430.0,0.00016772,2]
[362068012,1747968634255,-496.12503132,0.00016772,2]
[362068013,1747968634265,-430.0,0.00016772,2]
[362068014,1747968634275,-430.0,0.00016772,2]
[362068015,1747968634285,-430.0,0.00016772,2]
[362068016,1747968634294,-430.0,0.00016772,2]
[362068017,1747968634304,-466.79708242,0.00016772,2]
[362068018,1747968634314,-558.49557761,0.00016772,2]
[362068019,1747968634327,-437.34438951,0.00016772,2]
[362068021,1747968634337,-458.60749699,0.00016772,2]
[362068023,1747968634346,-430.0,0.00016772,2]
[362068024,1747968634356,-430.0,0.00016772,2]
[362068025,1747968634367,-442.38147107,0.00016772,2]
[362068027,1747968634377,-430.0,0.00016772,2]
[362068029,1747968634386,-430.0,0.00016772,2]
[362068031,1747968634396,-430.0,0.00016772,2]
[362068032,1747968634407,-430.0,0.00016772,2]
[362068033,1747968634417,-430.0,0.00016772,2]
[362068034,1747968634427,-700.58,0.00016772,2]
[362068035,1747968634437,-430.0,0.00016772,2]
[362068036,1747968634448,-606.73,0.00016772,2]
[362068037,1747968634458,-430.0,0.00016772,2]
[362068038,1747968634468,-708.82,0.00016772,2]
[362068039,1747968634478,-467.90904642,0.00016772,2]
[362068040,1747968634488,-430.0,0.00016772,2]
[362068041,1747968634500,-430.0,0.00016772,2]
[362068042,1747968634510,-430.0,0.00016772,2]
[362068043,1747968634520,-430.0,0.00016772,2]
[362068044,1747968634531,-430.0,0.00016772,2]
[362068045,1747968634541,-430.0,0.00016772,2]
[362068046,1747968634551,-430.0,0.00016772,2]
[362068047,1747968634561,-486.08978346,0.00016772,2]
[362068048,1747968634572,-430.0,0.00016772,2]
[362068049,1747968634581,-430.0,0.00016772,2]
[362068050,1747968634592,-443.70602263,0.00016772,2]
[362068051,1747968634601,-419.21803078,0.00016772,2]
[362068052,1747968634611,-430.0,0.00016772,2]
[362068053,1747968634621,-500.53288763,0.00016773,2]
[362068054,1747968634630,-430.0,0.00016773,2]
[362068055,1747968634640,-437.00286995,0.00016773,2]
[362068056,1747968634651,-430.0,0.00016773,2]
[362068057,1747968634660,-445.92612788,0.00016773,2]
[362068058,1747968634670,-430.0,0.00016773,2]
[362068059,1747968634680,-430.0,0.00016773,2]
[362068060,1747968634690,-430.0,0.00016773,2]
[362068061,1747968634699,-430.0,0.00016773,2]
[362068062,1747968634709,-430.0,0.00016773,2]
[362068063,1747968634719,-518.25880591,0.00016773,2]
[362068064,1747968634729,-430.0,0.00016773,2]
[362068065,1747968634738,-430.0,0.00016773,2]
[362068066,1747968634748,-430.0,0.00016773,2]
[362068067,1747968634758,-452.50295835,0.00016773,2]
[362068068,1747968634768,-369.49442908,0.00016773,2]
[362068069,1747968634777,-420.0,0.00016949,2]
[362068070,1747968634787,-430.0,0.00017044,2]
[362068071,1747968634796,-480.11,0.00017044,2]
[362068072,1747968634807,-610.31,0.00017044,2]
[362068073,1747968634818,-430.0,0.00017044,2]
[362068074,1747968634828,-529.17,0.00017044,2]
[362068075,1747968634837,-430.0,0.00017044,2]
[362068076,1747968634847,-651.54,0.00017044,2]
[362068077,1747968634856,-430.0,0.00017045,2]
[362068078,1747968634866,-430.0,0.00017045,2]
[362068079,1747968634875,-430.0,0.00017045,2]
[362068080,1747968634885,-497.2,0.00017045,2]
[362068081,1747968634895,-430.0,0.00017045,2]
[362068082,1747968634905,-878.44,0.00017045,2]
[362068083,1747968634914,-430.0,0.00017045,2]
[362068084,1747968634925,-459.3592014,0.00017045,2]
[362068085,1747968634934,-430.0,0.00017046,2]
[362068086,1747968634944,-457.2650657,0.00017046,2]
[362068087,1747968634954,-430.0,0.00017046,2]
[362068088,1747968634963,-440.13855998,0.00017046,2]
[362068089,1747968634972,-439.44218863,0.00017046,2]
[362068090,1747968634982,-430.0,0.00017046,2]
[362068091,1747968635099,-430.0,0.00017046,2]
[362068092,1747968635128,-430.0,0.00017046,2]
[362068093,1747968635138,-700.58,0.00017046,2]
[362068094,1747968635149,-312.84936779,0.00017046,2]
[362068095,1747968635159,-606.73,0.00017046,2]
[362068096,1747968635168,-708.82,0.00017046,2]
[362068097,1747968635177,-430.0,0.00017046,2]
[362068098,1747968635187,-430.0,0.00017046,2]
[362068099,1747968635197,-430.0,0.00017046,2]
[362068100,1747968635208,-430.0,0.00017046,2]
[362068101,1747968635218,-430.0,0.00017046,2]
[362068102,1747968635228,-450.0,0.00017046,2]
[362068103,1747968635237,-430.0,0.00017046,2]
[362068104,1747968635246,-443.19138753,0.00017047,2]
[362068105,1747968635255,-430.0,0.00017047,2]
[362068106,1747968635265,-393.29085305,0.00017047,2]
[362068107,1747968635274,-430.0,0.00017047,2]
[362068108,1747968635284,-501.09436803,0.00017047,2]
[362068109,1747968635294,-196.44879957,0.00017047,2]
[362068110,1747968635306,-506.15605884,0.00017072,2]
[362068111,1747968635323,-500.0,0.00017072,2]
[362068112,1747968635340,-500.0,0.00017072,2]
[362068113,1747968635350,-430.0,0.00017318,2]
[362068114,1747968635359,-480.11,0.00017318,2]
[362068115,1747968635368,-610.31,0.00017318,2]
[362068116,1747968635380,-430.0,0.00017318,2]
[362068117,1747968635389,-529.17,0.00017318,2]
[362068118,1747968635398,-430.0,0.00017318,2]
[362068119,1747968635408,-651.54,0.00017318,2]
[362068120,1747968635418,-430.0,0.00017319,2]
[362068121,1747968635428,-430.0,0.00017319,2]